fUST/lending_fUST_20250402
["ID","MTS","AMOUNT","RATE_DAILY","PERIOD"]
[357004947,1743570641049,-500.0,0.0002054,2]
[357004948,1743570641059,-172.97487971,0.0002054,2]
[357004949,1743570641072,-500.0,0.0002054,2]
[357004950,1743570641087,-500.0,0.0002054,2]
[357004951,1743570641101,-500.0,0.0002054,2]
[357004952,1743570641114,-502.97858351,0.0002054,2]
[357004953,1743570641124,-500.0,0.0002054,2]
[357004954,1743570641136,-500.0,0.0002054,2]
[357004955,1743570641150,-500.0,0.0002054,2]
[357004956,1743570641162,-500.0,0.0002054,2]
[357004957,1743570641176,-504.17917916,0.0002054,2]
[357004958,1743570641190,-500.0,0.0002054,2]
[357004959,1743570641203,-500.0,0.0002054,2]
[357004960,1743570641216,-504.87324558,0.0002054,2]
[357004961,1743570641229,-500.0,0.0002054,2]
[357004962,1743570641243,-503.27697886,0.0002054,2]
[357004963,1743570641256,-500.0,0.0002054,2]
[357004964,1743570641269,-500.0,0.0002054,2]
[357004965,1743570641281,-500.0,0.0002054,2]
[357004966,1743570641292,-500.0,0.0002054,2]
[357004967,1743570641305,-500.0,0.0002054,2]
[357004968,1743570641317,-247.17764994,0.0002054,2]
[357004969,1743570641331,-500.0,0.0002054,2]
[357004970,1743570641343,-500.0,0.0002054,2]
[357004971,1743570641354,-500.0,0.0002054,2]
[357004972,1743570641364,-500.0,0.0002054,2]
[357004973,1743570641375,-502.84955,0.0002054,2]
[357004974,1743570641387,-285.715461,0.0002054,2]
[357004975,1743570641399,-500.0,0.0002054,2]
[357004976,1743570641412,-500.0,0.0002054,2]
[357004977,1743570641424,-500.0,0.0002054,2]
[357004978,1743570641437,-285.715461,0.0002054,2]
[357004979,1743570641449,-500.0,0.0002054,2]
[357004980,1743570641462,-500.0,0.0002054,2]
[357004981,1743570641475,-500.0,0.0002054,2]
[357004982,1743570641488,-502.79438279,0.0002054,2]
[357004983,1743570641500,-500.0,0.0002054,2]
[357004984,1743570641510,-500.0,0.0002054,2]
[357004985,1743570641521,-500.0,0.0002054,2]
[357004986,1743570641531,-500.0,0.0002054,2]
[357004987,1743570641543,-500.0,0.0002054,2]
[357004988,1743570641557,-532.65304739,0.0002054,2]
[357004989,1743570641569,-475.83529849,0.0002054,2]
[357004990,1743570641582,-500.0,0.0002054,2]
[357004991,1743570641592,-500.0,0.0002054,2]
[357004992,1743570641603,-500.0,0.0002054,2]
[357004993,1743570641615,-500.0,0.0002054,2]
[357004994,1743570641627,-505.34826254,0.0002054,2]
[357004995,1743570641639,-500.0,0.0002054,2]
[357004996,1743570641651,-500.0,0.0002054,2]
[357004997,1743570641661,-500.0,0.0002054,2]
[357004998,1743570641672,-505.76044043,0.0002054,2]
[357004999,1743570641683,-500.0,0.0002054,2]
[357005000,1743570641694,-500.0,0.0002054,2]
[357005001,1743570641706,-500.0,0.0002054,2]
[357005002,1743570641718,-500.0,0.0002054,2]
[357005003,1743570641729,-501.74443939,0.0002054,2]
[357005004,1743570641740,-500.0,0.0002054,2]
[357005005,1743570641751,-500.0,0.0002054,2]
[357005006,1743570641763,-500.0,0.0002054,2]
[357005007,1743570641774,-500.0,0.0002054,2]
[357005008,1743570641785,-264.08742079,0.0002054,2]
[357005009,1743570641796,-500.0,0.0002054,2]
[357005010,1743570641807,-500.0,0.0002054,2]
[357005011,1743570641818,-500.0,0.0002054,2]
[357005012,1743570641830,-583.13838451,0.0002054,2]
[357005013,1743570641841,-500.0,0.0002054,2]
[357005014,1743570641852,-181.6615185,0.0002054,2]
[357005015,1743570641863,-500.0,0.0002054,2]
[357005016,1743570641876,-501.89070575,0.0002054,2]
[357005017,1743570641888,-500.0,0.0002054,2]
[357005018,1743570641899,-500.0,0.0002054,2]
[357005019,1743570641911,-497.16,0.0002054,2]
[357005020,1743570641922,-500.0,0.0002054,2]
[357005021,1743570641933,-500.0,0.0002054,2]
[357005022,1743570641946,-500.0,0.0002054,2]
[357005023,1743570641957,-500.0,0.0002054,2]
[357005024,1743570641969,-500.0,0.0002054,2]
[357005025,1743570641980,-500.0,0.0002054,2]
[357005026,1743570641992,-540.11623778,0.0002054,2]
[357005027,1743570642003,-500.0,0.0002054,2]
[357005028,1743570642014,-509.60807909,0.0002054,2]
[357005029,1743570642025,-500.0,0.0002054,2]
[357005030,1743570642037,-508.24944768,0.0002054,2]
[357005031,1743570642048,-548.78124375,0.0002054,2]
[357005032,1743570642059,-500.0,0.0002054,2]
[357005033,1743570642071,-500.0,0.0002054,2]
[357005034,1743570642082,-500.0,0.0002054,2]
[357005035,1743570642094,-151.0,0.0002054,2]
[357005036,1743570642104,-500.0,0.0002054,2]
[357005037,1743570642115,-151.0,0.0002054,2]
[357005038,1743570642127,-151.0,0.0002054,2]
[357005039,1743570642138,-151.0,0.0002054,2]
[357005040,1743570642149,-500.0,0.0002054,2]
[357005041,1743570642160,-513.41,0.0002054,2]
[357005042,1743570642171,-500.0,0.0002054,2]
[357005043,1743570642183,-500.0,0.0002054,2]
[357005044,1743570642195,-500.0,0.0002054,2]
[357005045,1743570642207,-500.0,0.0002054,2]
[357005046,1743570642219,-500.0,0.0002054,2]
[357005047,1743570642230,-500.0,0.0002054,2]
[357005048,1743570642241,-500.0,0.0002054,2]
[357005049,1743570642253,-506.68479477,0.0002054,2]
[357005050,1743570642263,-631.11370864,0.0002054,2]
[357005051,1743570642273,-500.0,0.0002054,2]
[357005052,1743570642282,-500.0,0.0002054,2]
[357005053,1743570642292,-500.0,0.0002054,2]
[357005054,1743570642302,-549.98553195,0.0002054,2]
[357005055,1743570642312,-503.56004515,0.0002054,2]
[357005056,1743570642322,-502.01708385,0.0002054,2]
[357005057,1743570642331,-546.30286171,0.0002054,2]
[357005058,1743570642341,-500.0,0.0002054,2]
[357005059,1743570642351,-565.7857778,0.0002054,2]
[357005060,1743570642361,-500.0,0.0002054,2]
[357005061,1743570642370,-500.0,0.0002054,2]
[357005062,1743570642541,-502.96984523,0.0002054,2]
[357005063,1743570642560,-500.0,0.0002054,2]
[357005064,1743570642571,-500.0,0.0002054,2]
[357005065,1743570642580,-500.0,0.0002054,2]
[357005066,1743570642590,-512.9131444,0.0002054,2]
[357005067,1743570642599,-500.0,0.0002054,2]
[357005068,1743570642609,-548.5001611,0.0002054,2]
[357005069,1743570642618,-500.0,0.0002054,2]
[357005070,1743570642628,-500.0,0.0002054,2]
[357005071,1743570642638,-500.0,0.0002054,2]
[357005072,1743570642648,-500.0,0.0002054,2]
[357005074,1743570642657,-1023.79,0.0002054,2]
[357005076,1743570642667,-500.0,0.0002054,2]
[357005077,1743570642677,-500.0,0.0002054,2]
[357005078,1743570642686,-248.97101161,0.0002054,2]
[357005079,1743570642696,-500.0,0.0002054,2]
[357005080,1743570642706,-500.0,0.0002054,2]
[357005081,1743570642715,-500.0,0.0002054,2]
[357005082,1743570642724,-500.0,0.0002054,2]
[357005083,1743570642734,-500.0,0.0002054,2]
[357005084,1743570642744,-500.0,0.0002054,2]
[357005085,1743570642753,-500.0,0.0002054,2]
[357005086,1743570642762,-500.0,0.0002054,2]
[357005087,1743570642771,-598.06672941,0.0002054,2]
[357005088,1743570642780,-5314.70803547,0.00020541,2]
[357005119,1743570646261,-540.50894998,0.0002054,2]
[357005120,1743570646271,-500.0,0.0002054,2]
[357005121,1743570646281,-500.0,0.0002054,2]
[357005122,1743570646291,-609.69227135,0.0002054,2]
[357005123,1743570646300,-1834.18993995,0.00020541,2]
[357005124,1743570646309,-500.0,0.00020541,2]
[357005125,1743570646319,-27899.51744782,0.00020542,2]
[357005126,1743570646328,-285.715461,0.00020542,2]
[357005127,1743570646337,-285.715461,0.00020542,2]
[357005128,1743570646346,-151.0,0.00020542,2]
[357005129,1743570646355,-151.0,0.00020542,2]
[357005130,1743570646364,-12458.93820146,0.00020559,2]
[357005131,1743570646374,-205.16330276,0.000206,2]
[357005132,1743570646383,-507.2067879,0.00020619,2]
[357005133,1743570646393,-500.0,0.00020619,2]
[357005134,1743570646403,-500.0,0.00020619,2]
[357005135,1743570646412,-500.0,0.00020619,2]
[357005136,1743570646422,-500.0,0.00020619,2]
[357005137,1743570646431,-500.0,0.00020619,2]
[357005138,1743570646440,-500.0,0.00020619,2]
[357005139,1743570646450,-500.0,0.00020619,2]
[357005140,1743570646459,-500.0,0.00020619,2]
[357005141,1743570646468,-500.0,0.00020619,2]
[357005142,1743570646478,-3166.15,0.00020619,2]
[357005143,1743570646487,-500.0,0.00020619,2]
[357005144,1743570646496,-233.56808264,0.00020619,2]
[357005145,1743570646506,-170.046735,0.00020619,2]
[357005146,1743570646515,-170.046735,0.00020619,2]
[357005147,1743570646524,-170.046735,0.00020619,2]
[357005148,1743570646533,-170.046735,0.00020619,2]
[357005149,1743570646542,-193.294457,0.00020619,2]
[357005150,1743570646551,-285.715461,0.00020619,2]
[357005151,1743570646561,-285.715461,0.00020619,2]
[357005152,1743570646570,-331.96,0.00020621,3]
[357005153,1743570646579,-8674.12086149,0.00020631,2]
[357005154,1743570646589,-500.0,0.00020631,2]
[357005155,1743570646598,-500.0,0.00020631,2]
[357005156,1743570646607,-500.0,0.00020631,2]
[357005157,1743570646616,-231.6420877,0.00020631,2]
[357005158,1743570646626,-500.0,0.00020631,2]
[357005159,1743570646635,-500.0,0.00020631,2]
[357005160,1743570646645,-500.0,0.00020631,2]
[357005161,1743570646655,-500.0,0.00020631,2]
[357005162,1743570646664,-500.0,0.00020631,2]
[357005163,1743570646674,-1000.0,0.00020631,2]
[357005164,1743570646684,-500.0,0.00020631,2]
[357005165,1743570646693,-501.09713217,0.00020631,2]
[357005166,1743570646702,-500.0,0.00020631,2]
[357005167,1743570646712,-500.0,0.00020631,2]
[357005168,1743570646721,-505.14614904,0.00020631,2]
[357005169,1743570646730,-514.77968771,0.00020631,2]
[357005170,1743570646739,-507.42486812,0.00020631,2]
[357005171,1743570646748,-500.0,0.00020631,2]
[357005172,1743570646760,-500.0,0.00020631,2]
[357005173,1743570646770,-500.0,0.00020631,2]
[357005174,1743570646779,-500.0,0.00020631,2]
[357005175,1743570646789,-505.44132291,0.00020631,2]
[357005176,1743570646798,-406.9612752,0.00020631,2]
[357005177,1743570646807,-500.0,0.00020631,2]
[357005178,1743570646817,-506.92978586,0.00020631,2]
[357005179,1743570646826,-500.0,0.00020631,2]
[357005180,1743570646836,-509.75996703,0.00020631,2]
[357005181,1743570646845,-500.0,0.00020631,2]
[357005182,1743570646854,-166.57418969,0.00020631,2]
[357005183,1743570646865,-500.0,0.00020631,2]
[357005184,1743570646877,-501.51964816,0.00020631,2]
[357005185,1743570646886,-504.81847303,0.00020631,2]
[357005186,1743570646896,-506.24327262,0.00020631,2]
[357005187,1743570646907,-500.0,0.00020631,2]
[357005188,1743570646916,-323.46449726,0.00020631,2]
[357005189,1743570647441,-176.53550274,0.00020631,2]
[357005190,1743570647451,-500.0,0.00020631,2]
[357005191,1743570647460,-188.70133281,0.00020631,2]
[357005192,1743570647469,-500.0,0.00020631,2]
[357005193,1743570647479,-500.0,0.00020631,2]
[357005194,1743570647489,-500.0,0.00020631,2]
[357005195,1743570647499,-500.0,0.00020631,2]
[357005196,1743570647508,-515.15958079,0.00020631,2]
[357005197,1743570647517,-500.0,0.00020631,2]
[357005198,1743570647528,-365.57779636,0.00020631,2]
[357005199,1743570647538,-501.03756712,0.00020631,2]
[357005200,1743570647547,-511.43228825,0.00020631,2]
[357005201,1743570647557,-179.28729113,0.00020631,2]
[357005202,1743570647567,-500.0,0.00020631,2]
[357005203,1743570647577,-500.0,0.00020631,2]
[357005204,1743570647586,-500.0,0.00020631,2]
[357005205,1743570647596,-500.0,0.00020631,2]
[357005206,1743570647605,-500.0,0.00020631,2]
[357005207,1743570647615,-500.0,0.00020631,2]
[357005208,1743570647625,-502.25664678,0.00020631,2]
[357005209,1743570647634,-500.0,0.00020631,2]
[357005210,1743570647644,-500.0,0.00020631,2]
[357005211,1743570647653,-510.30096805,0.00020631,2]
[357005212,1743570647663,-500.0,0.00020631,2]
[357005213,1743570647672,-500.0,0.00020631,2]
[357005214,1743570647682,-500.0,0.00020631,2]
[357005215,1743570647691,-500.0,0.00020631,2]
[357005216,1743570647701,-500.0,0.00020631,2]
[357005217,1743570647710,-500.0,0.00020631,2]
[357005218,1743570647719,-643.08259477,0.00020631,2]
[357005219,1743570647729,-500.0,0.00020631,2]
[357005220,1743570647739,-500.0,0.00020631,2]
[357005221,1743570647748,-500.0,0.00020631,2]
[357005222,1743570647758,-500.0,0.00020631,2]
[357005223,1743570647767,-269.1205039,0.00020631,2]
[357005224,1743570647777,-464.68906535,0.00020631,2]
[357005225,1743570647787,-500.0,0.00020631,2]
[357005226,1743570647796,-500.0,0.00020631,2]
[357005227,1743570647805,-500.0,0.00020631,2]
[357005228,1743570647814,-500.0,0.00020631,2]
[357005229,1743570647824,-500.0,0.00020631,2]
[357005230,1743570647833,-504.94878571,0.00020631,2]
[357005231,1743570647843,-517.64380796,0.00020631,2]
[357005232,1743570647853,-513.49139202,0.00020631,2]
[357005233,1743570647862,-551.18677103,0.00020631,2]
[357005234,1743570647875,-500.0,0.00020631,2]
[357005235,1743570647884,-500.0,0.00020631,2]
[357005236,1743570647893,-507.78519182,0.00020631,2]
[357005237,1743570647902,-500.0,0.00020631,2]
[357005238,1743570647913,-502.31443082,0.00020631,2]
[357005239,1743570647922,-500.0,0.00020631,2]
[357005240,1743570647931,-500.0,0.00020631,2]
[357005241,1743570647941,-500.0,0.00020631,2]
[357005242,1743570647951,-500.0,0.00020631,2]
[357005243,1743570647960,-500.0,0.00020631,2]
[357005244,1743570647970,-500.0,0.00020631,2]
[357005245,1743570647979,-509.57909422,0.00020631,2]
[357005246,1743570647988,-509.98749218,0.00020631,2]
[357005247,1743570647997,-500.0,0.00020631,2]
[357005248,1743570648006,-469.4079154,0.00020631,2]
[357005249,1743570648016,-500.0,0.00020631,2]
[357005250,1743570648027,-500.0,0.00020631,2]
[357005251,1743570648036,-247.80493439,0.00020631,2]
[357005252,1743570648046,-518.85275686,0.00020631,2]
[357005253,1743570648055,-500.0,0.00020631,2]
[357005254,1743570648065,-518.13438062,0.00020631,2]
[357005255,1743570648074,-500.0,0.00020631,2]
[357005256,1743570648084,-515.51461708,0.00020631,2]
[357005257,1743570648093,-505.9849874,0.00020631,2]
[357005258,1743570648102,-503.70191974,0.00020631,2]
[357005259,1743570648113,-500.0,0.00020631,2]
[357005260,1743570648122,-503.38905022,0.00020631,2]
[357005261,1743570648132,-505.76400672,0.00020631,2]
[357005262,1743570648141,-500.0,0.00020631,2]
[357005263,1743570648151,-500.0,0.00020631,2]
[357005264,1743570648160,-500.0,0.00020631,2]
[357005265,1743570648170,-500.0,0.00020631,2]
[357005266,1743570648180,-500.0,0.00020631,2]
[357005267,1743570648189,-500.0,0.00020631,2]
[357005268,1743570648198,-500.0,0.00020631,2]
[357005269,1743570648208,-500.0,0.00020631,2]
[357005270,1743570648217,-500.0,0.00020631,2]
[357005271,1743570648227,-500.0,0.00020631,2]
[357005272,1743570648237,-170.046735,0.00020631,2]
[357005273,1743570648246,-170.046735,0.00020631,2]
[357005274,1743570648255,-170.046735,0.00020631,2]
[357005275,1743570648265,-170.046735,0.00020631,2]
[357005276,1743570648274,-170.046735,0.00020631,2]
[357005277,1743570648284,-170.046735,0.00020631,2]
[357005278,1743570648294,-285.715461,0.00020631,2]
[357005279,1743570648303,-285.715461,0.00020631,2]
[357005280,1743570648313,-285.715461,0.00020631,2]
[357005281,1743570648323,-285.715461,0.00020631,2]
[357005282,1743570648333,-285.715461,0.00020631,2]
[357005283,1743570648343,-285.715461,0.00020631,2]
[357005284,1743570648353,-151.0,0.00020631,2]
[357005285,1743570648363,-151.0,0.00020631,2]
[357005286,1743570648373,-151.0,0.00020631,2]
[357005287,1743570648383,-151.0,0.00020631,2]
[357005288,1743570648396,-232.751142,0.00020631,2]
[357005289,1743570648407,-233.9727366,0.00020654,2]
[357005290,1743570648417,-505.95515071,0.00020654,2]
[357005291,1743570648429,-501.56015912,0.00020654,2]
[357005292,1743570648440,-502.99828907,0.00020654,2]
[357005293,1743570648451,-582.61313588,0.00020654,2]
[357005294,1743570648461,-500.0,0.00020654,2]
[357005295,1743570648471,-500.0,0.00020654,2]
[357005296,1743570648480,-557.33971331,0.00020654,2]
[357005297,1743570648490,-500.0,0.00020654,2]
[357005298,1743570648500,-500.0,0.00020654,2]
[357005299,1743570648510,-212.98838849,0.00020654,2]
[357005300,1743570648520,-500.0,0.00020654,2]
[357005301,1743570648531,-502.59033149,0.00020654,2]
[357005302,1743570648542,-508.15231831,0.00020654,2]
[357005303,1743570648552,-502.65471273,0.00020654,2]
[357005304,1743570648562,-500.0,0.00020654,2]
[357005305,1743570648572,-500.0,0.00020654,2]
[357005306,1743570648581,-502.47868478,0.00020654,2]
[357005307,1743570648591,-503.90397615,0.00020654,2]
[357005308,1743570648600,-500.0,0.00020654,2]
[357005309,1743570648610,-503.88449561,0.00020654,2]
[357005310,1743570648620,-504.82904999,0.00020654,2]
[357005311,1743570648630,-501.75227783,0.00020654,2]
[357005312,1743570648640,-501.98172734,0.00020654,2]
[357005313,1743570648653,-500.0,0.00020654,2]
[357005314,1743570648663,-500.90899685,0.00020654,2]
[357005315,1743570648674,-500.0,0.00020654,2]
[357005316,1743570648684,-500.0,0.00020654,2]
[357005317,1743570648694,-500.0,0.00020654,2]
[357005318,1743570648704,-214.917361,0.0002066,2]
[357005319,1743570648715,-11745.82,0.00020812,2]
[357005320,1743570648858,-500.0,0.00020812,2]
[357005321,1743570648870,-500.0,0.00020812,2]
[357005322,1743570648882,-506.8820944,0.00020812,2]
[357005323,1743570648896,-1334.1,0.00020812,2]
[357005324,1743570648906,-500.0,0.00020812,2]
[357005325,1743570648918,-500.0,0.00020812,2]
[357005326,1743570648928,-508.08591188,0.00020812,2]
[357005327,1743570648938,-500.0,0.00020812,2]
[357005328,1743570648948,-903.95,0.00020812,2]
[357005329,1743570648958,-500.0,0.00020812,2]
[357005330,1743570648969,-542.67735251,0.00020812,2]
[357005331,1743570648979,-5255.52,0.00020812,2]
[357005332,1743570648988,-500.0,0.00020812,2]
[357005333,1743570648998,-500.0,0.00020812,2]
[357005334,1743570649007,-500.0,0.00020812,2]
[357005335,1743570649016,-500.0,0.00020812,2]
[357005336,1743570649026,-702.61,0.00020812,2]
[357005337,1743570649035,-500.0,0.00020812,2]
[357005338,1743570649045,-500.0,0.00020812,2]
[357005339,1743570649055,-511.65450683,0.00020812,2]
[357005340,1743570649064,-504.99,0.00020812,2]
[357005341,1743570649073,-500.0,0.00020813,2]
[357005342,1743570649082,-500.0,0.00020813,2]
[357005343,1743570649091,-500.0,0.00020813,2]
[357005344,1743570649100,-500.0,0.00020813,2]
[357005345,1743570649110,-776.59,0.00020813,2]
[357005346,1743570649120,-500.0,0.00020813,2]
[357005347,1743570649130,-500.0,0.00020813,2]
[357005348,1743570649140,-500.0,0.00020813,2]
[357005349,1743570649151,-1080.44,0.00020813,2]
[357005350,1743570649161,-500.0,0.00020813,2]
[357005351,1743570649171,-500.0,0.00020813,2]
[357005352,1743570649181,-500.0,0.00020813,2]
[357005353,1743570649190,-500.0,0.00020813,2]
[357005354,1743570649200,-500.0,0.00020813,2]
[357005355,1743570649210,-500.0,0.00020813,2]
[357005356,1743570649220,-500.0,0.00020813,2]
[357005357,1743570649229,-285.715461,0.00020813,2]
[357005358,1743570649238,-285.715461,0.00020813,2]
[357005359,1743570649248,-500.0,0.00020813,2]
[357005360,1743570649259,-500.0,0.00020813,2]
[357005361,1743570649268,-500.0,0.00020813,2]
[357005362,1743570649278,-500.0,0.00020813,2]
[357005363,1743570649289,-500.0,0.00020813,2]
[357005364,1743570649299,-500.0,0.00020813,2]
[357005365,1743570649308,-500.0,0.00020813,2]
[357005366,1743570649318,-500.0,0.00020813,2]
[357005367,1743570649327,-500.0,0.00020813,2]
[357005368,1743570649337,-500.0,0.00020813,2]
[357005369,1743570649348,-500.0,0.00020813,2]
[357005370,1743570649358,-1816.58,0.00020813,2]
[357005371,1743570649368,-500.0,0.00020813,2]
[357005372,1743570649377,-500.0,0.00020813,2]
[357005373,1743570649387,-500.0,0.00020813,2]
[357005374,1743570649397,-781.81,0.00020813,2]
[357005375,1743570649408,-500.0,0.00020813,2]
[357005376,1743570649418,-151.0,0.00020813,2]
[357005377,1743570649428,-500.0,0.00020813,2]
[357005378,1743570649439,-542.84,0.00020813,2]
[357005379,1743570649450,-3527.35,0.00020813,2]
[357005380,1743570649460,-500.0,0.00020813,2]
[357005381,1743570649470,-500.0,0.00020813,2]
[357005382,1743570649480,-500.0,0.00020813,2]
[357005383,1743570649490,-500.0,0.00020814,2]
[357005384,1743570649500,-514.34875176,0.00020814,2]
[357005385,1743570649510,-509.71997264,0.00020814,2]
[357005386,1743570649520,-500.0,0.00020814,2]
[357005387,1743570649530,-500.0,0.00020814,2]
[357005388,1743570649540,-527.72239204,0.00020814,2]
[357005389,1743570649549,-503.7625955,0.00020814,2]
[357005390,1743570649560,-502.55131012,0.00020814,2]
[357005391,1743570649570,-500.0,0.00020814,2]
[357005392,1743570649579,-500.0,0.00020814,2]
[357005393,1743570649588,-500.0,0.00020814,2]
[357005394,1743570649598,-500.0,0.00020814,2]
[357005395,1743570649608,-500.0,0.00020814,2]
[357005396,1743570649617,-500.0,0.00020814,2]
[357005397,1743570649627,-500.0,0.00020814,2]
[357005398,1743570649642,-500.0,0.00020814,2]
[357005399,1743570649652,-513.22129983,0.00020814,2]
[357005400,1743570649662,-500.0,0.00020814,2]
[357005401,1743570649672,-500.0,0.00020814,2]
[357005402,1743570649681,-630.19771664,0.00020814,2]
[357005403,1743570649691,-500.0,0.00020814,2]
[357005404,1743570649700,-500.0,0.00020814,2]
[357005405,1743570649710,-500.0,0.00020814,2]
[357005406,1743570649720,-500.0,0.00020814,2]
[357005407,1743570649729,-500.0,0.00020814,2]
[357005408,1743570649739,-500.0,0.00020814,2]
[357005409,1743570649749,-500.0,0.00020814,2]
[357005410,1743570649759,-500.0,0.00020814,2]
[357005411,1743570649769,-500.0,0.00020814,2]
[357005412,1743570649778,-200.0,0.00020814,2]
[357005413,1743570649787,-500.0,0.00020814,2]
[357005414,1743570649797,-500.0,0.00020814,2]
[357005415,1743570649806,-500.0,0.00020814,2]
[357005416,1743570649816,-500.0,0.00020814,2]
[357005417,1743570649825,-500.0,0.00020814,2]
[357005418,1743570649835,-500.0,0.00020814,2]
[357005419,1743570649844,-170.046735,0.00020814,2]
[357005420,1743570649854,-170.046735,0.00020814,2]
[357005421,1743570649863,-500.0,0.00020814,2]
[357005422,1743570649877,-500.0,0.00020814,2]
[357005423,1743570649887,-500.0,0.00020814,2]
[357005424,1743570649899,-500.0,0.00020814,2]
[357005425,1743570649908,-500.0,0.00020814,2]
[357005426,1743570649919,-500.0,0.00020814,2]
[357005427,1743570649929,-500.0,0.00020814,2]
[357005428,1743570649938,-500.0,0.00020814,2]
[357005429,1743570649948,-500.0,0.00020814,2]
[357005430,1743570649959,-500.0,0.00020814,2]
[357005431,1743570649969,-500.0,0.00020814,2]
[357005432,1743570649978,-500.0,0.00020814,2]
[357005433,1743570649988,-500.0,0.00020814,2]
[357005434,1743570649999,-500.0,0.00020814,2]
[357005435,1743570650009,-500.0,0.00020814,2]
[357005436,1743570650019,-500.0,0.00020814,2]
[357005437,1743570650029,-500.0,0.00020814,2]
[357005438,1743570650040,-500.0,0.00020814,2]
[357005439,1743570650050,-500.0,0.00020814,2]
[357005440,1743570650059,-500.0,0.00020814,2]
[357005441,1743570650069,-500.0,0.00020814,2]
[357005442,1743570650079,-500.0,0.00020814,2]
[357005443,1743570650089,-500.0,0.00020814,2]
[357005444,1743570650099,-500.0,0.00020814,2]
[357005445,1743570650109,-500.0,0.00020814,2]
[357005446,1743570650118,-500.0,0.00020814,2]
[357005447,1743570650128,-500.0,0.00020814,2]
[357005448,1743570650138,-500.0,0.00020814,2]
[357005449,1743570650149,-500.0,0.00020814,2]
[357005450,1743570650159,-500.0,0.00020814,2]
[357005451,1743570650169,-500.0,0.00020814,2]
[357005452,1743570650179,-500.0,0.00020814,2]
[357005453,1743570650188,-500.0,0.00020814,2]
[357005454,1743570650199,-500.0,0.00020814,2]
[357005455,1743570650208,-500.0,0.00020814,2]
[357005456,1743570650218,-500.0,0.00020814,2]
[357005457,1743570650227,-500.0,0.00020814,2]
[357005458,1743570650238,-500.0,0.00020814,2]
[357005459,1743570650248,-500.0,0.00020814,2]
[357005460,1743570650258,-500.0,0.00020814,2]
[357005461,1743570650268,-500.0,0.00020814,2]
[357005462,1743570650278,-500.0,0.00020814,2]
[357005463,1743570650288,-603.156275,0.00020814,2]
[357005464,1743570650297,-500.0,0.00020814,2]
[357005465,1743570650307,-500.0,0.00020814,2]
[357005466,1743570650317,-433.75033675,0.00020814,2]
[357005467,1743570650327,-500.0,0.00020814,2]
[357005468,1743570650337,-500.0,0.00020814,2]
[357005469,1743570650347,-500.0,0.00020814,2]
[357005470,1743570650357,-500.0,0.00020814,2]
[357005471,1743570650367,-520.96989407,0.00020814,2]
[357005472,1743570650377,-500.0,0.00020814,2]
[357005473,1743570650386,-500.0,0.00020814,2]
[357005474,1743570650396,-513.66797243,0.00020814,2]
[357005475,1743570650407,-500.0,0.00020814,2]
[357005476,1743570650416,-500.0,0.00020814,2]
[357005477,1743570650426,-500.0,0.00020814,2]
[357005478,1743570650437,-440.47420309,0.00020814,2]